fUSD/lending_fUSD_20260624
["ID","MTS","AMOUNT","RATE_DAILY","PERIOD"]
[426328859,1782309185000,-23724.70101728,0.000281,6]
[426328858,1782309185000,-1179.26,0.00028099,2]
[426328863,1782309185000,-15431.94048151,0.000281,2]
[426328861,1782309185000,-15431.94048151,0.000281,2]
[426328866,1782309185000,-710.87159,0.000281,2]
[426328844,1782309185000,-979.85981695,0.00028071,2]
[426328864,1782309185000,-710.87159,0.000281,2]
[426328843,1782309185000,-1063.48333675,0.00028071,2]
[426328823,1782309185000,-200.0,0.00028029,7]
[426328835,1782309185000,-1179.26,0.00028068,30]
[426328868,1782309185000,-1179.26,0.0002813,7]
[426328816,1782309185000,-996.62793513,0.00028014,2]
[426328815,1782309185000,-2240.04071019,0.00028014,2]
[426328818,1782309185000,-1106.73722206,0.00028014,2]
[426328817,1782309185000,-909.2727263,0.00028014,2]
[426328819,1782309185000,-1759.22099651,0.00028014,2]
[426328827,1782309185000,-4902.35,0.00028033,30]
[426328828,1782309185000,-5370.27,0.00028033,30]
[426328820,1782309185000,-2036.55062399,0.00028014,2]
[426328829,1782309185000,-5004.49,0.00028033,30]
[426328822,1782309185000,-151.27539405,0.00028024,22]
[426328821,1782309185000,-1083.29060645,0.00028014,2]
[426328824,1782309185000,-200.0,0.00028029,7]
[426328825,1782309185000,-200.0,0.00028029,7]
[426328826,1782309185000,-200.0,0.00028029,7]
[426328831,1782309185000,-6067.32,0.00028033,30]
[426328833,1782309185000,-1179.26,0.00028038,7]
[426328830,1782309185000,-4903.29,0.00028033,30]
[426328834,1782309185000,-1179.23,0.00028068,30]
[426328832,1782309185000,-1179.23,0.00028038,7]
[426328838,1782309185000,-982.10448036,0.0002807,2]
[426328839,1782309185000,-933.09964176,0.00028071,2]
[426328840,1782309185000,-1055.30634277,0.00028071,2]
[426328837,1782309185000,-1020.48335027,0.0002807,2]
[426328836,1782309185000,-376.93,0.00028069,15]
[426328841,1782309185000,-975.90854071,0.00028071,2]
[426328870,1782309185000,-4902.35,0.00028194,7]
[426328875,1782309185000,-300.0,0.000282,20]
[426328867,1782309185000,-1179.32,0.0002813,7]
[426328901,1782309185000,-1107.27,0.00028356,2]
[426328902,1782309185000,-1508.63,0.00028356,2]
[426328903,1782309185000,-1000.0,0.00028356,2]
[426328905,1782309185000,-200.0,0.00028359,2]
[426328909,1782309185000,-1500.0,0.00028359,2]
[426328904,1782309185000,-1231.83,0.00028356,2]
[426328908,1782309185000,-468.51135063,0.00028359,2]
[426328906,1782309185000,-398.02527208,0.00028359,2]
[426328907,1782309185000,-151.0,0.00028359,2]
[426328910,1782309185000,-280.03725111,0.00028359,2]
[426328911,1782309185000,-200.0,0.00028378,2]
[426328913,1782309185000,-2121.06,0.000284,7]
[426328914,1782309185000,-16521.88,0.000284,7]
[426328920,1782309185000,-150.0,0.00028499,2]
[426328916,1782309185000,-600.0,0.0002847,2]
[426328915,1782309185000,-1665.88,0.00028451,2]
[426328918,1782309185000,-151.27539405,0.0002848,24]
[426328919,1782309185000,-3000.0,0.00028493,2]
[426328917,1782309185000,-30000.00000001,0.00028479,5]
[426328922,1782309185000,-1500.0,0.000285,2]
[426328923,1782309185000,-1500.0,0.000285,2]
[426328924,1782309185000,-654.0,0.00028506,4]
[426328921,1782309185000,-50000.0,0.000285,2]
[426328926,1782309185000,-4902.35,0.00028516,30]
[426328871,1782309185000,-5370.27,0.00028194,7]
[426328900,1782309185000,-1004.05,0.00028356,2]
[426328899,1782309185000,-1231.83,0.00028356,2]
[426328912,1782309185000,-300.0,0.000284,7]
[426328895,1782309185000,-1000.0,0.00028356,2]
[426328874,1782309185000,-6067.32,0.00028194,7]
[426328889,1782309185000,-5004.5,0.00028355,2]
[426328872,1782309185000,-5004.49,0.00028194,7]
[426328876,1782309185000,-2346.89,0.000282,7]
[426328873,1782309185000,-4903.29,0.00028194,7]
[426328925,1782309185000,-5749.34,0.00028516,30]
[426328886,1782309185000,-220.33115725,0.00028315,2]
[426328877,1782309185000,-16521.88,0.000282,7]
[426328878,1782309185000,-1053.86,0.00028215,2]
[426328879,1782309185000,-5018.52063358,0.00028227,7]
[426328880,1782309185000,-5000.0,0.0002823,7]
[426328883,1782309185000,-367.0,0.00028267,2]
[426328881,1782309185000,-151.27539405,0.00028231,23]
[426328887,1782309185000,-4902.35,0.00028355,2]
[426328885,1782309185000,-152.0,0.000283,10]
[426328898,1782309185000,-1000.0,0.00028356,2]
[426328884,1782309185000,-2000.0,0.00028286,7]
[426328890,1782309185000,-5370.27,0.00028355,2]
[426328893,1782309185000,-1000.0,0.00028356,2]
[426328897,1782309185000,-1471.26,0.00028356,2]
[426328892,1782309185000,-6067.32,0.00028355,2]
[426328894,1782309185000,-1000.0,0.00028356,2]
[426328891,1782309185000,-4903.29,0.00028355,2]
[426328888,1782309185000,-5004.49,0.00028355,2]
[426328882,1782309185000,-300.0,0.00028238,5]
[426328896,1782309185000,-1000.0,0.00028356,2]
[426328968,1782309186000,-182.0,0.00028782,30]
[426328960,1782309186000,-518.0,0.00028782,30]
[426328956,1782309186000,-500.0,0.00028767,3]
[426328958,1782309186000,-1139.0,0.00028781,30]
[426328965,1782309186000,-1160.0,0.00028782,30]
[426328959,1782309186000,-155.0,0.00028781,30]
[426328961,1782309186000,-151.0,0.00028782,30]
[426328962,1782309186000,-321.0,0.00028782,30]
[426328966,1782309186000,-1701.0,0.00028782,30]
[426328964,1782309186000,-154.0,0.00028782,30]
[426328963,1782309186000,-363.0,0.00028782,30]
[426328967,1782309186000,-226.0,0.00028782,30]
[426328985,1782309186000,-2000.0,0.00028857,7]
[426328970,1782309186000,-228.0,0.00028782,30]
[426328971,1782309186000,-270.0,0.00028782,30]
[426328975,1782309186000,-799.88,0.000288,7]
[426328972,1782309186000,-2121.06,0.000288,7]
[426328973,1782309186000,-275.75502942,0.000288,2]
[426328974,1782309186000,-16521.88,0.000288,7]
[426328976,1782309186000,-1079.08,0.000288,30]
[426328977,1782309186000,-1030.11464315,0.00028808,2]
[426328979,1782309186000,-4902.76,0.00028838,2]
[426328978,1782309186000,-1079.08,0.00028836,30]
[426328957,1782309186000,-151.27539405,0.00028774,25]
[426328969,1782309186000,-736.0,0.00028782,30]
[426328955,1782309186000,-240.42317456,0.00028767,3]
[426328932,1782309186000,-16521.88,0.000286,7]
[426328950,1782309186000,-500.0,0.00028767,3]
[426328987,1782309186000,-1079.08,0.00028873,30]
[426328927,1782309186000,-5004.5,0.00028516,30]
[426328928,1782309186000,-5370.27,0.00028516,30]
[426328930,1782309186000,-6067.32,0.00028516,30]
[426328929,1782309186000,-4903.29,0.00028516,30]
[426328931,1782309186000,-2346.89,0.000286,7]
[426328933,1782309186000,-6858.36175074,0.00028649,2]
[426328938,1782309186000,-593.74468463,0.00028658,2]
[426328941,1782309186000,-399.13113342,0.00028658,2]
[426328940,1782309186000,-798.26226685,0.00028658,2]
[426328934,1782309186000,-164.0,0.0002865,7]
[426328936,1782309186000,-348.63582345,0.00028658,2]
[426328953,1782309186000,-500.0,0.00028767,3]
[426328942,1782309186000,-199.56556671,0.00028658,2]
[426328939,1782309186000,-296.87234231,0.00028658,2]
[426328943,1782309186000,-4902.35,0.00028677,7]
[426328937,1782309186000,-174.31791173,0.00028658,2]
[426328945,1782309186000,-4903.29,0.00028677,7]
[426328944,1782309186000,-5004.5,0.00028677,7]
[426328946,1782309186000,-440.59634676,0.00028697,2]
[426328947,1782309186000,-1325.25562948,0.00028766,2]
[426328948,1782309186000,-151.0,0.00028767,2]
[426328949,1782309186000,-150.0,0.00028767,2]
[426328951,1782309186000,-500.0,0.00028767,3]
[426328954,1782309186000,-500.0,0.00028767,3]
[426328952,1782309186000,-500.0,0.00028767,3]
[426328935,1782309186000,-8358.0,0.00028656,10]
[426328983,1782309186000,-150.0,0.00028855,2]
[426328981,1782309186000,-5004.5,0.00028838,2]
[426328986,1782309186000,-1665.88,0.00028872,2]
[426329023,1782309186000,-750.0,0.00028986,2]
[426329013,1782309186000,-750.0,0.00028986,2]
[426329015,1782309186000,-750.0,0.00028986,2]
[426329018,1782309186000,-750.0,0.00028986,2]
[426329017,1782309186000,-750.0,0.00028986,2]
[426329020,1782309186000,-750.0,0.00028986,2]
[426329016,1782309186000,-750.0,0.00028986,2]
[426329019,1782309186000,-750.0,0.00028986,2]
[426329021,1782309186000,-750.0,0.00028986,2]
[426329024,1782309186000,-750.0,0.00028986,2]
[426329026,1782309186000,-750.0,0.00028986,2]
[426329028,1782309186000,-750.0,0.00028986,2]
[426329029,1782309186000,-750.0,0.00028986,2]
[426329030,1782309186000,-750.0,0.00028986,2]
[426329027,1782309186000,-750.0,0.00028986,2]
[426329031,1782309186000,-750.0,0.00028986,2]
[426329034,1782309186000,-750.0,0.00028986,2]
[426329025,1782309186000,-750.0,0.00028986,2]
[426329032,1782309186000,-750.0,0.00028986,2]
[426328982,1782309186000,-4903.29,0.00028838,2]
[426329036,1782309186000,-750.0,0.00028986,2]
[426329035,1782309186000,-750.0,0.00028986,2]
[426329038,1782309186000,-750.0,0.00028986,2]
[426329037,1782309186000,-750.0,0.00028986,2]
[426329039,1782309186000,-750.0,0.00028986,2]
[426329014,1782309186000,-750.0,0.00028986,2]
[426329022,1782309186000,-750.0,0.00028986,2]
[426329033,1782309186000,-750.0,0.00028986,2]
[426329007,1782309186000,-750.0,0.00028986,2]
[426329012,1782309186000,-750.0,0.00028986,2]
[426328980,1782309186000,-4902.35,0.00028838,2]
[426328988,1782309186000,-1767.12814516,0.0002888,60]
[426328990,1782309186000,-265.5,0.000289,2]
[426328991,1782309186000,-1053.86,0.000289,2]
[426328992,1782309186000,-200.0,0.00028907,2]
[426328989,1782309186000,-1347.0,0.000289,2]
[426329000,1782309186000,-1079.08,0.00028982,30]
[426328993,1782309186000,-290.3986294,0.00028907,2]
[426328994,1782309186000,-1079.08,0.00028909,30]
[426328996,1782309186000,-16947.3816242,0.0002897,6]
[426328995,1782309186000,-1079.08,0.00028945,30]
[426328984,1782309186000,-150.0,0.00028855,2]
[426328999,1782309186000,-217.000102,0.00028971,2]
[426328997,1782309186000,-308.4,0.00028971,30]
[426329010,1782309186000,-750.0,0.00028986,2]
[426329003,1782309186000,-750.0,0.00028986,2]
[426329006,1782309186000,-750.0,0.00028986,2]
[426329004,1782309186000,-750.0,0.00028986,2]
[426329005,1782309186000,-750.0,0.00028986,2]
[426329002,1782309186000,-750.0,0.00028986,2]
[426329001,1782309186000,-750.0,0.00028986,2]
[426329008,1782309186000,-750.0,0.00028986,2]
[426328998,1782309186000,-150.0,0.00028971,2]
[426329009,1782309186000,-750.0,0.00028986,2]
[426329011,1782309186000,-750.0,0.00028986,2]
[426329068,1782309187000,-265.22186754,0.00029,2]
[426329074,1782309187000,-800.0,0.00029,2]
[426329063,1782309187000,-331.11,0.00029,2]
[426329065,1782309187000,-200.0,0.00029,2]
[426329067,1782309187000,-200.0,0.00029,2]
[426329064,1782309187000,-200.0,0.00029,2]
[426329066,1782309187000,-200.0,0.00029,2]
[426329069,1782309187000,-223.71730258,0.00029,2]
[426329071,1782309187000,-3501.1629579,0.00029,7]
[426329076,1782309187000,-800.0,0.00029,2]
[426329077,1782309187000,-800.0,0.00029,2]
[426329072,1782309187000,-800.0,0.00029,2]
[426329079,1782309187000,-800.0,0.00029,2]
[426329080,1782309187000,-800.0,0.00029,2]
[426329078,1782309187000,-800.0,0.00029,2]
[426329075,1782309187000,-800.0,0.00029,2]
[426329070,1782309187000,-219.05497627,0.00029,2]
[426329092,1782309187000,-928.04342613,0.00029,2]
[426329060,1782309187000,-13013.91936189,0.00029,2]
[426329073,1782309187000,-800.0,0.00029,2]
[426329061,1782309187000,-200.0,0.00029,2]
[426329047,1782309187000,-2877.000001,0.00028989,7]
[426329059,1782309187000,-2328.49773572,0.00029,2]
[426329093,1782309187000,-500.0,0.00029,2]
[426329040,1782309187000,-750.0,0.00028986,2]
[426329041,1782309187000,-641.0,0.00028986,2]
[426329045,1782309187000,-750.0,0.00028986,2]
[426329042,1782309187000,-750.0,0.00028986,2]
[426329043,1782309187000,-750.0,0.00028986,2]
[426329044,1782309187000,-750.0,0.00028986,2]
[426329046,1782309187000,-750.0,0.00028986,2]
[426329049,1782309187000,-50000.0,0.00029,2]
[426329056,1782309187000,-44781.36014266,0.00029,2]
[426329048,1782309187000,-50000.0,0.0002899,120]
[426329055,1782309187000,-1003.6689913,0.00029,2]
[426329053,1782309187000,-41532.33377062,0.00029,2]
[426329050,1782309187000,-15125.1216618,0.00029,2]
[426329051,1782309187000,-42582.90852008,0.00029,2]
[426329052,1782309187000,-5301.19710625,0.00029,2]
[426329054,1782309187000,-35371.17824666,0.00029,2]
[426329057,1782309187000,-444.53863453,0.00029,2]
[426329058,1782309187000,-141143.27252246,0.00029,7]
[426329062,1782309187000,-200.0,0.00029,2]
[426329083,1782309187000,-2346.89,0.00029,7]
[426329107,1782309187000,-500.0,0.00029,2]
[426329082,1782309187000,-163917.0,0.00029,2]
[426329111,1782309187000,-500.0,0.00029,2]
[426329112,1782309187000,-500.0,0.00029,2]
[426329114,1782309187000,-500.0,0.00029,2]
[426329113,1782309187000,-500.0,0.00029,2]
[426329109,1782309187000,-500.0,0.00029,2]
[426329115,1782309187000,-500.0,0.00029,2]
[426329120,1782309187000,-500.0,0.00029,2]
[426329117,1782309187000,-500.0,0.00029,2]
[426329116,1782309187000,-500.0,0.00029,2]
[426329118,1782309187000,-500.0,0.00029,2]
[426329124,1782309187000,-500.0,0.00029,2]
[426329126,1782309187000,-500.0,0.00029,2]
[426329123,1782309187000,-500.0,0.00029,2]
[426329125,1782309187000,-500.0,0.00029,2]
[426329122,1782309187000,-500.0,0.00029,2]
[426329121,1782309187000,-500.0,0.00029,2]
[426329127,1782309187000,-500.0,0.00029,2]
[426329129,1782309187000,-500.0,0.00029,2]
[426329081,1782309187000,-1169.0,0.00029,2]
[426329110,1782309187000,-500.0,0.00029,2]
[426329105,1782309187000,-500.0,0.00029,2]
[426329119,1782309187000,-500.0,0.00029,2]
[426329108,1782309187000,-500.0,0.00029,2]
[426329128,1782309187000,-500.0,0.00029,2]
[426329084,1782309187000,-1248.0,0.00029,2]
[426329090,1782309187000,-11449.9790671,0.00029,2]
[426329086,1782309187000,-23508.04370303,0.00029,2]
[426329087,1782309187000,-3121.26,0.00029,2]
[426329085,1782309187000,-153.68,0.00029,2]
[426329091,1782309187000,-320.0,0.00029,2]
[426329089,1782309187000,-21189.005913,0.00029,2]
[426329103,1782309187000,-500.0,0.00029,2]
[426329097,1782309187000,-500.0,0.00029,2]
[426329088,1782309187000,-200000.0,0.00029,3]
[426329096,1782309187000,-500.0,0.00029,2]
[426329100,1782309187000,-500.0,0.00029,2]
[426329098,1782309187000,-500.0,0.00029,2]
[426329104,1782309187000,-500.0,0.00029,2]
[426329095,1782309187000,-500.0,0.00029,2]
[426329094,1782309187000,-500.0,0.00029,2]
[426329102,1782309187000,-500.0,0.00029,2]
[426329099,1782309187000,-500.0,0.00029,2]
[426329101,1782309187000,-500.0,0.00029,2]
[426329106,1782309187000,-500.0,0.00029,2]
[426329165,1782309188000,-2000.0,0.00029,2]
[426329167,1782309188000,-4028.02,0.00029,2]
[426329168,1782309188000,-43902.33,0.00029,10]
[426329161,1782309188000,-1000.0,0.00029,2]
[426329158,1782309188000,-10000.0,0.00029,2]
[426329160,1782309188000,-10000.0,0.00029,2]
[426329163,1782309188000,-3270.0,0.00029,2]
[426329162,1782309188000,-178.73,0.00029,2]
[426329164,1782309188000,-2000.0,0.00029,2]
[426329157,1782309188000,-1000.0,0.00029,10]
[426329166,1782309188000,-2071.0865374,0.00029,2]
[426329176,1782309188000,-732.0,0.00029,2]
[426329169,1782309188000,-12213.22692942,0.00029,2]
[426329171,1782309188000,-1500.0,0.00029,2]
[426329172,1782309188000,-1500.0,0.00029,2]
[426329178,1782309188000,-200.0,0.00029,2]
[426329179,1782309188000,-221.0,0.00029,15]
[426329174,1782309188000,-6807.68758546,0.00029,30]
[426329173,1782309188000,-1294.18336506,0.00029,2]
[426329175,1782309188000,-1400.0,0.00029,2]
[426329177,1782309188000,-162.0,0.00029,2]
[426329185,1782309188000,-500.0,0.00029,2]
[426329159,1782309188000,-13760.0,0.00029,2]
[426329170,1782309188000,-5015.0,0.00029,2]
[426329155,1782309188000,-10000.0,0.00029,2]
[426329132,1782309188000,-500.0,0.00029,2]
[426329152,1782309188000,-592.9,0.00029,2]
[426329131,1782309188000,-500.0,0.00029,2]
[426329135,1782309188000,-500.0,0.00029,2]
[426329133,1782309188000,-500.0,0.00029,2]
[426329182,1782309188000,-1005.494409,0.00029,2]
[426329134,1782309188000,-500.0,0.00029,2]
[426329130,1782309188000,-500.0,0.00029,2]
[426329136,1782309188000,-500.0,0.00029,2]
[426329137,1782309188000,-500.0,0.00029,2]
[426329143,1782309188000,-603.77,0.00029,2]
[426329146,1782309188000,-150.0,0.00029,2]
[426329142,1782309188000,-500.0,0.00029,2]
[426329156,1782309188000,-2353.05395338,0.00029,2]
[426329139,1782309188000,-500.0,0.00029,2]
[426329138,1782309188000,-500.0,0.00029,2]
[426329145,1782309188000,-10000.0,0.00029,2]
[426329140,1782309188000,-500.0,0.00029,2]
[426329144,1782309188000,-2841.0,0.00029,2]
[426329149,1782309188000,-547.3699079,0.00029,2]
[426329153,1782309188000,-500.52,0.00029,2]
[426329147,1782309188000,-150.0,0.00029,2]
[426329150,1782309188000,-3098.0,0.00029,2]
[426329154,1782309188000,-150.0,0.00029,2]
[426329151,1782309188000,-292.58628213,0.00029,2]
[426329148,1782309188000,-203.6,0.00029,2]
[426329141,1782309188000,-500.0,0.00029,2]
[426329187,1782309188000,-159.63376891,0.00029,2]
[426329190,1782309188000,-500.0,0.00029,2]
[426329183,1782309188000,-8023.0,0.00029,2]
[426329213,1782309188000,-1079.08,0.00029018,30]
[426329221,1782309188000,-58776.12,0.000291,30]
[426329222,1782309188000,-58776.12,0.000291,30]
[426329215,1782309188000,-654.0,0.00029054,5]
[426329217,1782309188000,-152.0,0.00029068,11]
[426329218,1782309188000,-1079.08,0.00029091,30]
[426329214,1782309188000,-3000.0,0.00029041,2]
[426329216,1782309188000,-1079.08,0.00029055,30]
[426329220,1782309188000,-21038.28,0.000291,30]
[426329219,1782309188000,-21038.28,0.000291,30]
[426329228,1782309188000,-14360.76,0.000291,30]
[426329212,1782309188000,-1500664.83372518,0.0002901,120]
[426329184,1782309188000,-54275.38964139,0.00029,10]
[426329225,1782309188000,-71803.8,0.000291,30]
[426329227,1782309188000,-14360.76,0.000291,30]
[426329224,1782309188000,-10040.51,0.000291,30]
[426329229,1782309188000,-33508.44,0.000291,30]
[426329232,1782309188000,-534.05,0.000291,2]
[426329233,1782309188000,-534.05,0.000291,2]
[426329226,1782309188000,-71803.8,0.000291,30]
[426329230,1782309188000,-33508.44,0.000291,30]
[426329234,1782309188000,-534.54,0.000291,2]
[426329235,1782309188000,-534.05,0.000291,2]
[426329236,1782309188000,-534.05,0.000291,2]
[426329231,1782309188000,-2538.08,0.000291,4]
[426329205,1782309188000,-25000.0,0.00029009,3]
[426329223,1782309188000,-10040.51,0.000291,30]
[426329209,1782309188000,-8381.89217617,0.00029009,3]
[426329206,1782309188000,-25000.0,0.00029009,3]
[426329188,1782309188000,-151.0,0.00029,2]
[426329181,1782309188000,-2000.0,0.00029,2]
[426329189,1782309188000,-500.0,0.00029,2]
[426329180,1782309188000,-221.0,0.00029,7]
[426329199,1782309188000,-500.0,0.00029,2]
[426329200,1782309188000,-270.00427378,0.00029,2]
[426329193,1782309188000,-500.0,0.00029,2]
[426329194,1782309188000,-330.65,0.00029,2]
[426329192,1782309188000,-330.65,0.00029,2]
[426329195,1782309188000,-500.0,0.00029,2]
[426329191,1782309188000,-500.0,0.00029,2]
[426329196,1782309188000,-330.65,0.00029,2]
[426329203,1782309188000,-25000.0,0.00029009,3]
[426329197,1782309188000,-330.64,0.00029,2]
[426329202,1782309188000,-1219.0,0.00029,2]
[426329211,1782309188000,-422.84568802,0.00029009,7]
[426329207,1782309188000,-25000.0,0.00029009,3]
[426329204,1782309188000,-7335.674404,0.00029009,3]
[426329186,1782309188000,-546.23024616,0.00029,2]
[426329210,1782309188000,-5138.03974224,0.00029009,3]
[426329208,1782309188000,-15000.0,0.00029009,3]
[426329201,1782309188000,-500.0,0.00029,2]
[426329198,1782309188000,-500.0,0.00029,2]
[426329249,1782309189000,-1342.17358744,0.00029279,2]
[426329253,1782309189000,-2613.38082856,0.00029281,2]
[426329255,1782309189000,-1291.19342574,0.00029281,2]
[426329250,1782309189000,-1117.8954125,0.00029279,2]
[426329248,1782309189000,-350.0,0.00029252,13]
[426329259,1782309189000,-1665.88,0.00029294,2]
[426329257,1782309189000,-2375.97572799,0.00029281,2]
[426329264,1782309189000,-1229.0,0.00029318,2]
[426329263,1782309189000,-383.0,0.00029318,2]
[426329260,1782309189000,-647.84,0.00029298,2]
[426329262,1782309189000,-1361.0,0.00029318,2]
[426329261,1782309189000,-1800.21,0.000293,7]
[426329258,1782309189000,-1263.83904085,0.00029282,2]
[426329239,1782309189000,-151.27539405,0.00029117,26]
[426329252,1782309189000,-1269.37788371,0.00029281,2]
[426329254,1782309189000,-1060.81818069,0.00029281,2]
[426329256,1782309189000,-2052.42449593,0.00029281,2]
[426329246,1782309189000,-152.57638868,0.00029206,10]
[426329245,1782309189000,-1079.08,0.000292,30]
[426329240,1782309189000,-768248.0,0.0002912,20]
[426329244,1782309189000,-2121.06,0.000292,7]
[426329243,1782309189000,-1079.08,0.00029164,30]
[426329242,1782309189000,-200.0,0.00029129,2]
[426329241,1782309189000,-1079.08,0.00029127,30]
[426329237,1782309189000,-404.65,0.000291,2]
[426329238,1782309189000,-534.05,0.000291,2]
[426329266,1782309189000,-1138.55996416,0.00029341,2]
[426329251,1782309189000,-2252.0192499,0.00029279,2]
[426329267,1782309189000,-1163.61736848,0.00029344,2]
[426329247,1782309189000,-387.2268535,0.00029233,2]
[426329268,1782309189000,-1078.08765911,0.00029344,2]
[426329265,1782309189000,-1190.56390865,0.00029339,2]
[426329293,1782309189000,-200.0,0.00029455,2]
[426329294,1782309189000,-301.14337869,0.00029455,2]
[426329296,1782309189000,-12440728.58112267,0.000295,120]
[426329295,1782309189000,-22419.03165746,0.00029487,2]
[426329292,1782309189000,-644.79446245,0.00029452,2]
[426329285,1782309189000,-1999999.999999,0.000294,30]
[426329286,1782309189000,-424.9,0.000294,30]
[426329288,1782309189000,-33508.44,0.000294,30]
[426329287,1782309189000,-14360.76,0.000294,30]
[426329291,1782309189000,-721.12765534,0.00029452,2]
[426329282,1782309189000,-446.40792026,0.000294,2]
[426329283,1782309189000,-2346.89,0.000294,7]
[426329280,1782309189000,-176.96574041,0.000294,14]
[426329289,1782309189000,-2000.0,0.00029429,7]
[426329290,1782309189000,-184.0,0.00029431,2]
[426329279,1782309189000,-176.96574042,0.000294,14]
[426329277,1782309189000,-1248.55582104,0.00029352,2]
[426329270,1782309189000,-1102.52719987,0.00029344,2]
[426329281,1782309189000,-176.96574041,0.000294,14]
[426329276,1782309189000,-1128.26463785,0.00029352,2]
[426329271,1782309189000,-1190.56295104,0.00029344,2]
[426329273,1782309189000,-1732.73273543,0.00029344,2]
[426329274,1782309189000,-1518.28714922,0.00029344,2]
[426329278,1782309189000,-176.96574042,0.000294,14]
[426329269,1782309189000,-1196.01553154,0.00029344,2]
[426329272,1782309189000,-1632.72995321,0.00029344,2]
[426329284,1782309189000,-71803.8,0.000294,30]
[426329275,1782309189000,-1234.15889299,0.00029344,2]
[426329300,1782309190000,-347.66033672,0.000295,120]
[426329297,1782309190000,-2324.57462682,0.000295,120]
[426329303,1782309190000,-800.0,0.000295,2]
[426329298,1782309190000,-4090.96735002,0.000295,120]
[426329299,1782309190000,-8469.73462772,0.000295,120]
[426329301,1782309190000,-1000.0,0.000295,2]
[426329304,1782309190000,-800.0,0.000295,2]
[426329302,1782309190000,-800.0,0.000295,2]
[426329305,1782309190000,-800.0,0.000295,2]
[426329306,1782309190000,-800.0,0.000295,2]
[426329307,1782309190000,-1500.0,0.000295,2]
[426329310,1782309190000,-427.35538042,0.00029526,7]
[426329308,1782309190000,-6000.0,0.000295,30]
[426329309,1782309190000,-151.27539405,0.00029512,28]
[426329311,1782309190000,-21.30472613,0.00029558,10]
[426329312,1782309281000,169.0,0.0002485,120]
[426329314,1782309384000,-511.70444409,0.00012996,2]
[426329320,1782309806000,-150.0,0.00012991,2]
[426329322,1782309943000,166.66,0.00012829,2]
[426329328,1782310182000,-250.0,0.00012991,2]
[426329330,1782310182000,-237.08575,0.00012991,2]
[426329333,1782310182000,-556.92801822,0.00012999,2]
[426329329,1782310182000,-294.09750619,0.00012991,2]
[426329332,1782310182000,-500.0,0.00012996,2]
[426329334,1782310182000,-500.0,0.00012999,2]
[426329335,1782310182000,-500.0,0.00012999,2]
[426329336,1782310182000,-500.0,0.00012999,2]
[426329331,1782310182000,-150.0,0.00012992,2]
[426329349,1782310183000,-371.84811259,0.00012999,2]
[426329348,1782310183000,-237.84852949,0.00012999,2]
[426329346,1782310183000,-500.0,0.00012999,2]
[426329347,1782310183000,-500.0,0.00012999,2]
[426329345,1782310183000,-500.0,0.00012999,2]
[426329342,1782310183000,-500.0,0.00012999,2]
[426329341,1782310183000,-500.0,0.00012999,2]
[426329344,1782310183000,-500.0,0.00012999,2]